fUST/lending_fUST_20260403
["ID","MTS","AMOUNT","RATE_DAILY","PERIOD"]
[419332978,1775193452462,-1867.68959386,0.00011498,30]
[419332979,1775193476488,-843.08054152,0.00011498,30]
[419332980,1775193696589,-542.15402707,0.00011238,30]
[419332981,1775193696614,-542.15402707,0.00011351,30]
[419332982,1775193696787,-542.15402707,0.00011351,30]
[419332983,1775193696808,-542.15402707,0.00011497,30]
[419332984,1775193696832,-542.15402707,0.00011498,30]
[419332986,1775193973733,3086.74,9.001e-05,2]
[419333050,1775194232025,-711.42571337,0.00010218,2]
[419333057,1775194232079,-1117.43519046,0.00010218,2]
[419333059,1775194232092,-1163.26236751,0.00010218,2]
[419333211,1775194238331,-2007.87672866,0.00010218,2]
[419333213,1775194238340,-200.28989877,0.00010244,2]
[419333215,1775194238350,-300.0,0.00010321,2]
[419333217,1775194238360,-300.0,0.00010321,2]
[419333219,1775194238370,-300.0,0.00010321,2]
[419333221,1775194238380,-123.31806441,0.00010321,2]
[419333223,1775194238391,-891.68193559,0.00010321,2]
[419333225,1775194238401,-565.0,0.00010322,2]
[419333227,1775194238410,-219.3609027,0.00010635,2]
[419333229,1775194238420,-357.30287299,0.00010784,2]
[419333231,1775194238429,-420.0,0.00011349,2]
[419333233,1775194238439,-330.0,0.00011349,2]
[419333235,1775194238448,-6156.17415359,0.00011498,2]
[419333238,1775194238460,-1962.68103781,0.00011498,2]
[419333240,1775194238469,-2639.02671854,0.00011498,2]
[419333242,1775194238480,-990.72703622,0.00011498,2]
[419333313,1775194241256,-228.90274145,0.00010244,2]
[419333315,1775194241265,-217.26884163,0.00011498,2]
[419333317,1775194241277,-772.73702623,0.00011498,2]
[419333320,1775194241289,-3974.47067958,0.00011498,2]
[419333322,1775194241301,-1917.85952668,0.00011498,2]
[419333422,1775194264666,-3041.76084802,0.00011498,2]
[419333423,1775194264675,-2167.73702808,0.00011498,2]
[419333424,1775194264695,-1450.02739162,0.00011498,2]
[419333425,1775194264707,-65004.03891798,0.00011673,2]
[419333426,1775194264718,-6941.10724371,0.00011673,2]
[419333427,1775194288423,-1500.0,0.00010501,2]
[419333470,1775194486688,-150.24749965,0.00034777,120]
[419333471,1775194486715,-876.71,0.00034777,120]
[419333472,1775194486739,-876.71,0.00034777,120]
[419333473,1775194486767,-876.71,0.00034777,120]
[419333474,1775194486796,-876.71,0.00034777,120]
[419333475,1775194486824,-876.71,0.00034777,120]
[419333476,1775194486853,-876.71,0.00034777,120]
[419333477,1775194486880,-876.71,0.00034777,120]
[419333478,1775194486908,-876.71,0.00034777,120]
[419333479,1775194486936,-876.71,0.00034777,120]
[419333480,1775194486967,-876.71,0.00034777,120]
[419333481,1775194486997,-876.71,0.00034777,120]
[419333482,1775194487026,-876.71,0.00034777,120]
[419333483,1775194487053,-876.71,0.00034777,120]
[419333484,1775194487083,-876.71,0.00034777,120]
[419333485,1775194487117,-876.71,0.00034777,120]
[419333486,1775194487148,-876.71,0.00034777,120]
[419333487,1775194487176,-876.71,0.00034777,120]
[419333488,1775194487203,-876.71,0.00034777,120]
[419333489,1775194487231,-876.71,0.00034777,120]
[419333490,1775194487258,-876.71,0.00034777,120]
[419333491,1775194487285,-876.71,0.00034777,120]
[419333492,1775194487315,-876.71,0.00034777,120]
[419333493,1775194487343,-876.71,0.00034777,120]
[419333494,1775194487369,-876.87,0.00034777,120]
[419333495,1775194487396,-500.0,0.00034777,120]
[419333496,1775194487426,-500.0,0.00034777,120]
[419333497,1775194487454,-500.0,0.00034777,120]
[419333498,1775194487483,-500.0,0.00034777,120]
[419333499,1775194487511,-500.0,0.00034777,120]
[419333500,1775194487540,-500.0,0.00034777,120]
[419333501,1775194487567,-500.0,0.00034777,120]
[419333502,1775194487596,-500.0,0.00034777,120]
[419333503,1775194487623,-500.0,0.00034777,120]
[419333504,1775194487651,-378.69775185,0.00034777,120]
[419333505,1775194487679,-1022.27607685,0.00034777,120]
[419333506,1775194487708,-180.04813228,0.00034777,120]
[419333507,1775194487736,-150.16441289,0.00034777,120]
[419333508,1775194487762,-4006.14319849,0.00034777,120]
[419333509,1775194487790,-500.0,0.00034777,120]
[419333510,1775194487968,-6000.000249,0.00034777,120]
[419333511,1775194488000,-1025.0,0.00034777,120]
[419333512,1775194488026,-2548.33199292,0.00034777,120]
[419333513,1775194488051,-2499.67804178,0.00034777,120]
[419333514,1775194488076,-604.23739927,0.00034777,120]
[419333515,1775194488100,-948.19717246,0.00034777,120]
[419333516,1775194488129,-306.59762676,0.00034777,120]
[419333517,1775194488158,-150.77917332,0.00034777,120]
[419333518,1775194488184,-150.77917332,0.00034777,120]
[419333519,1775194488212,-306.59762676,0.00034777,120]
[419333520,1775194488239,-150.77917332,0.00034777,120]
[419333521,1775194488269,-153.29881338,0.00034777,120]
[419333522,1775194488295,-153.29881337,0.00034777,120]
[419333523,1775194488320,-306.59762676,0.00034777,120]
[419333524,1775194488346,-306.59762676,0.00034777,120]
[419333525,1775194488372,-150.77917332,0.00034777,120]
[419333526,1775194488398,-150.77917332,0.00034777,120]
[419333527,1775194488423,-153.29881338,0.00034777,120]
[419333528,1775194488448,-150.77917331,0.00034777,120]
[419333529,1775194488474,-153.29881337,0.00034777,120]
[419333530,1775194488500,-319.39259509,0.00034777,120]
[419333531,1775194488526,-319.39259509,0.00034777,120]
[419333532,1775194488554,-319.39259509,0.00034777,120]
[419333533,1775194488580,-602.77973271,0.00034777,120]
[419333534,1775194488608,-259.03227462,0.00034777,120]
[419333535,1775194488635,-187.15881024,0.00034777,120]
[419333536,1775194488662,-214.70695761,0.00034777,120]
[419333537,1775194488687,-150.5675449,0.00034777,120]
[419333538,1775194488713,-284.91764654,0.00034777,120]
[419333539,1775194488746,-602.77973271,0.00034777,120]
[419333540,1775194488772,-187.15881024,0.00034777,120]
[419333541,1775194488799,-214.70695761,0.00034777,120]
[419333542,1775194488824,-150.5675449,0.00034777,120]
[419333543,1775194488850,-602.77973271,0.00034777,120]
[419333544,1775194488877,-187.15881024,0.00034777,120]
[419333545,1775194488901,-150.5675449,0.00034777,120]
[419333546,1775194488927,-284.91764654,0.00034777,120]
[419333547,1775194488955,-214.70695761,0.00034777,120]
[419333548,1775194488980,-187.15881024,0.00034777,120]
[419333549,1775194489009,-602.77973271,0.00034777,120]
[419333550,1775194489035,-284.91764654,0.00034777,120]
[419333551,1775194489060,-187.15881024,0.00034777,120]
[419333552,1775194489087,-284.91764654,0.00034777,120]
[419333553,1775194489112,-602.77973271,0.00034777,120]
[419333554,1775194489138,-187.15881024,0.00034777,120]
[419333555,1775194489164,-284.91764654,0.00034777,120]
[419333556,1775194489192,-602.77973271,0.00034777,120]
[419333557,1775194489218,-284.91764654,0.00034777,120]
[419333558,1775194489246,-602.77973271,0.00034777,120]
[419333559,1775194489273,-187.15881024,0.00034777,120]
[419333560,1775194489299,-284.91764654,0.00034777,120]
[419333561,1775194489327,-602.77973271,0.00034777,120]
[419333562,1775194489353,-187.15881024,0.00034777,120]
[419333563,1775194489380,-602.77973271,0.00034777,120]
[419333564,1775194489408,-602.77973271,0.00034777,120]
[419333565,1775194489436,-602.77973271,0.00034777,120]
[419333566,1775194489464,-602.77973271,0.00034777,120]
[419333567,1775194489491,-602.77973271,0.00034777,120]
[419333568,1775194489519,-602.77973271,0.00034777,120]
[419333569,1775194489546,-284.9176465,0.00034777,120]
[419333570,1775194489573,-200.92657755,0.00034777,120]
[419333571,1775194489600,-200.92657755,0.00034777,120]
[419333572,1775194489627,-200.92657755,0.00034777,120]
[419333573,1775194489655,-158.42320905,0.00034777,120]
[419333574,1775194489681,-266.92586764,0.00034777,120]
[419333575,1775194489709,-690.77226528,0.00034777,120]
[419333576,1775194489736,-197.57632706,0.00034777,120]
[419333577,1775194489762,-1517.79528931,0.00034777,120]
[419333578,1775194489790,-1896.82398241,0.00034777,120]
[419333579,1775194489816,-1462.36086608,0.00034777,120]
[419333580,1775194489842,-176.04492166,0.00034777,120]
[419333581,1775194489867,-176.04492166,0.00034777,120]
[419333582,1775194489891,-1248.39726578,0.00034777,120]
[419333583,1775194489916,-1029.44296924,0.00034777,120]
[419333584,1775194489943,-387.39658756,0.00034777,120]
[419333585,1775194489969,-158.92606165,0.00034777,120]
[419333586,1775194489994,-506.83801537,0.00034777,120]
[419333587,1775194490020,-287.0,0.00034777,120]
[419333588,1775194490048,-302.87332039,0.00034777,120]
[419333589,1775194490073,-217.71170832,0.00034777,120]
[419333590,1775194490183,-203.93255389,0.00034777,120]
[419333591,1775194490212,-301.32008639,0.00034777,120]
[419333592,1775194490241,-302.87332039,0.00034777,120]
[419333593,1775194490268,-203.93255389,0.00034777,120]
[419333594,1775194490294,-301.32008639,0.00034777,120]
[419333595,1775194490320,-203.93255389,0.00034777,120]
[419333596,1775194490347,-302.87332039,0.00034777,120]
[419333597,1775194490375,-302.87332039,0.00034777,120]
[419333598,1775194490400,-203.93255389,0.00034777,120]
[419333599,1775194490426,-203.93255389,0.00034777,120]
[419333600,1775194490456,-302.87332039,0.00034777,120]
[419333601,1775194490486,-302.87332039,0.00034777,120]
[419333602,1775194490515,-203.93255389,0.00034777,120]
[419333603,1775194490542,-302.87332039,0.00034777,120]
[419333604,1775194490568,-203.93255389,0.00034777,120]
[419333605,1775194490596,-302.87332039,0.00034777,120]
[419333606,1775194490622,-203.93255389,0.00034777,120]
[419333607,1775194490648,-150.66004319,0.00034777,120]
[419333608,1775194490677,-150.66004319,0.00034777,120]
[419333609,1775194490703,-3654.0,0.00034777,120]
[419333610,1775194490731,-298.95082075,0.00034777,120]
[419333611,1775194490756,-500.0,0.00034777,120]
[419333612,1775194490781,-500.0,0.00034777,120]
[419333613,1775194490807,-622.85736406,0.00034777,120]
[419333614,1775194490832,-6689.0,0.00034777,120]
[419333615,1775194490857,-164.49331942,0.00034777,120]
[419333616,1775194490882,-503.1439294,0.00034777,120]
[419333617,1775194490910,-152.49540495,0.00034777,120]
[419333618,1775194490938,-152.49540494,0.00034777,120]
[419333619,1775194490963,-186.76985414,0.00034777,120]
[419333620,1775194490991,-172.24750358,0.00034777,120]
[419333621,1775194491018,-172.24750357,0.00034777,120]
[419333622,1775194491043,-259.52379086,0.00034777,120]
[419333623,1775194491067,-158.162979,0.00034777,120]
[419333624,1775194491092,-1127.58096158,0.00034777,120]
[419333625,1775194491128,-500.0,0.00034777,120]
[419333626,1775194491153,-500.0,0.00034777,120]
[419333627,1775194491178,-494.58105963,0.00034777,120]
[419333628,1775194491204,-500.0,0.00034777,120]
[419333629,1775194491229,-500.0,0.00034777,120]
[419333630,1775194491253,-500.0,0.00034777,120]
[419333631,1775194491278,-500.0,0.00034777,120]
[419333632,1775194491302,-500.0,0.00034777,120]
[419333633,1775194491327,-596.72617403,0.00034777,120]
[419333634,1775194491478,43645.21214933,0.00034777,120]
[419333635,1775194491508,2028.70311054,0.00034777,120]
[419333636,1775194491565,5293.723947,0.00034777,120]
[419333637,1775194491669,-22097.47492228,0.000244,120]
[419333638,1775194491705,-3537.80208621,0.00027,120]
[419333639,1775194491742,-163.0,0.0003,120]
[419333640,1775194491767,-776.02720579,0.0003013,120]
[419333641,1775194491792,-165.5820775,0.00030137,120]
[419333642,1775194491820,-2399.1,0.000309,120]
[419333643,1775194491848,-2399.1,0.000319,120]
[419333644,1775194491874,-254.0,0.000322,120]
[419333645,1775194491899,-1024.05,0.000322,120]
[419333646,1775194491924,-1000.0,0.000326,120]
[419333647,1775194491951,-600.0,0.000328,120]
[419333648,1775194491975,-500.0,0.00032873,120]
[419333649,1775194491999,-500.0,0.00032873,120]
[419333650,1775194492026,-500.0,0.00032873,120]
[419333651,1775194492051,-500.0,0.00032873,120]
[419333652,1775194492075,-150.07357948,0.00032873,120]
[419333653,1775194492099,-204.92661704,0.00032873,120]
[419333654,1775194492123,-173.34523097,0.00032873,120]
[419333655,1775194492147,-270.28245381,0.00032873,120]
[419333656,1775194492171,-181.09326653,0.00032873,120]
[419333657,1775194492195,-182.47314248,0.00032873,120]
[419333658,1775194492219,-500.0,0.00032873,120]
[419333659,1775194492242,-500.0,0.00032873,120]
[419333660,1775194492266,-500.0,0.00032873,120]
[419333661,1775194492291,-500.0,0.00032873,120]
[419333662,1775194492314,-500.0,0.00032873,120]
[419333663,1775194492339,-287.54533989,0.00032873,120]
[419333664,1775194492364,-500.0,0.00032873,120]
[419333665,1775194492388,-500.0,0.00032873,120]
[419333666,1775194492412,-500.0,0.00032873,120]
[419333667,1775194492436,-500.0,0.00032873,120]
[419333668,1775194492460,-500.0,0.00032873,120]
[419333669,1775194492484,-500.0,0.00032873,120]
[419333670,1775194492616,-521.55097103,0.00032873,120]
[419333671,1775194492641,-500.0,0.00032873,120]
[419333672,1775194492666,-500.0,0.00032873,120]
[419333673,1775194492691,-414.14191522,0.00032873,120]
[419333674,1775194492719,-182.55046811,0.00032873,120]
[419333675,1775194492744,-287.46164178,0.00032873,120]
[419333676,1775194492769,-500.0,0.00032873,120]
[419333677,1775194492794,-500.0,0.00032873,120]
[419333678,1775194492819,-500.0,0.00032873,120]
[419333679,1775194492844,-500.0,0.00032873,120]
[419333680,1775194492869,-313.70150338,0.00032873,120]
[419333681,1775194492894,-500.0,0.00032873,120]
[419333682,1775194492918,-500.0,0.00032873,120]
[419333683,1775194492943,-202.03918233,0.00032873,120]
[419333684,1775194492967,-500.0,0.00032873,120]
[419333685,1775194492992,-500.0,0.00032873,120]
[419333686,1775194493016,-367.01750891,0.00032873,120]
[419333687,1775194493041,-172.04652063,0.00032873,120]
[419333688,1775194493067,-500.0,0.00032874,120]
[419333689,1775194493094,-500.0,0.00032874,120]
[419333690,1775194493120,-500.0,0.00032874,120]
[419333691,1775194493146,-500.0,0.00032874,120]
[419333692,1775194493172,-500.0,0.00032874,120]
[419333693,1775194493197,-500.0,0.00032874,120]
[419333694,1775194493222,-500.0,0.00032874,120]
[419333695,1775194493247,-500.0,0.00032874,120]
[419333696,1775194493271,-500.0,0.00032874,120]
[419333697,1775194493296,-200.0,0.00032874,120]
[419333698,1775194493322,-500.0,0.00032876,120]
[419333699,1775194493348,-379.68487942,0.00032876,120]
[419333700,1775194493374,-500.0,0.00032876,120]
[419333701,1775194493398,-500.0,0.00032876,120]
[419333702,1775194493423,-500.0,0.00032876,120]
[419333703,1775194493447,-181.62324211,0.00032876,120]
[419333704,1775194493471,-500.0,0.00032876,120]
[419333705,1775194493496,-500.0,0.00032876,120]
[419333706,1775194493520,-500.0,0.00032876,120]
[419333707,1775194493545,-500.0,0.00032876,120]
[419333708,1775194493571,-500.0,0.00032876,120]
[419333709,1775194493595,-265.52973892,0.00032876,120]
[419333710,1775194493627,-500.0,0.00032876,120]
[419333711,1775194493653,-505.53768652,0.00032876,120]
[419333712,1775194493679,-170.99615602,0.00032876,120]
[419333713,1775194493704,-157.6918027,0.00032876,120]
[419333714,1775194493729,-500.0,0.00032876,120]
[419333715,1775194493754,-500.0,0.00032876,120]
[419333716,1775194493779,-500.0,0.00032876,120]
[419333717,1775194493804,-309.74531947,0.00032876,120]
[419333718,1775194493829,-1837.39,0.00032876,120]
[419333719,1775194493853,-1837.39,0.00032876,120]
[419333720,1775194493877,-1837.39,0.00032876,120]
[419333721,1775194493901,-1837.39,0.00032876,120]
[419333722,1775194493924,-1837.39,0.00032876,120]
[419333723,1775194493948,-1837.39,0.00032876,120]
[419333724,1775194493974,-1837.39,0.00032876,120]
[419333725,1775194493999,-1837.39,0.00032876,120]
[419333726,1775194494024,-1837.39,0.00032876,120]
[419333727,1775194494049,-1837.39,0.00032876,120]
[419333728,1775194494073,-1837.39,0.00032876,120]
[419333729,1775194494099,-1837.39,0.00032876,120]
[419333730,1775194494124,-1837.39,0.00032876,120]
[419333731,1775194494150,-1837.39,0.00032876,120]
[419333732,1775194494175,-1837.39,0.00032876,120]
[419333733,1775194494198,-500.0,0.00032876,120]
[419333734,1775194494223,-1837.39,0.00032876,120]
[419333735,1775194494248,-500.0,0.00032876,120]
[419333736,1775194494272,-500.0,0.00032876,120]
[419333737,1775194494297,-1837.39,0.00032876,120]
[419333738,1775194494322,-1837.39,0.00032876,120]
[419333739,1775194494348,-500.0,0.00032876,120]
[419333740,1775194494372,-1837.39,0.00032876,120]
[419333741,1775194494396,-500.0,0.00032876,120]
[419333742,1775194494422,-1837.39,0.00032876,120]
[419333743,1775194494446,-500.0,0.00032876,120]
[419333744,1775194494470,-1837.39,0.00032876,120]
[419333745,1775194494495,-500.0,0.00032876,120]
[419333746,1775194494520,-1837.39,0.00032876,120]
[419333747,1775194494545,-500.0,0.00032876,120]
[419333748,1775194494571,-1837.39,0.00032876,120]
[419333749,1775194494596,-500.0,0.00032876,120]
[419333750,1775194494621,-1837.39987471,0.00032876,120]
[419333751,1775194494647,-450.87951787,0.00032876,120]
[419333752,1775194494672,-151.04568721,0.00032876,120]
[419333753,1775194494698,-155.73741046,0.00032876,120]
[419333754,1775194494724,-500.0,0.00032876,120]
[419333755,1775194494751,-500.0,0.00032876,120]
[419333756,1775194494777,-500.0,0.00032876,120]
[419333757,1775194494802,-500.0,0.00032876,120]
[419333758,1775194494828,-500.0,0.00032876,120]
[419333759,1775194494854,-500.0,0.00032876,120]
[419333760,1775194494880,-245.57420512,0.00032876,120]
[419333761,1775194495005,-500.0,0.00032876,120]
[419333762,1775194495031,-500.0,0.00032876,120]
[419333763,1775194495056,-500.0,0.00032876,120]
[419333764,1775194495081,-500.0,0.00032876,120]
[419333765,1775194495106,-424.54442832,0.00032876,120]
[419333766,1775194495131,-500.0,0.00032876,120]
[419333767,1775194495156,-500.0,0.00032876,120]
[419333768,1775194495181,-500.0,0.00032876,120]
[419333769,1775194495206,-500.0,0.00032876,120]
[419333770,1775194495231,-220.61765242,0.00032876,120]
[419333771,1775194495257,-150.50132712,0.00032876,120]
[419333772,1775194495283,-500.0,0.00032876,120]
[419333773,1775194495309,-500.0,0.00032876,120]
[419333774,1775194495336,-500.0,0.00032876,120]
[419333775,1775194495361,-500.0,0.00032876,120]
[419333776,1775194495387,-500.0,0.00032876,120]
[419333777,1775194495413,-500.0,0.00032876,120]
[419333778,1775194495438,-500.0,0.00032876,120]
[419333779,1775194495463,-500.0,0.00032876,120]
[419333780,1775194495490,-500.0,0.00032876,120]
[419333781,1775194495515,-500.0,0.00032876,120]
[419333782,1775194495542,-266.64167075,0.00032876,120]
[419333783,1775194495569,-500.0,0.00032876,120]
[419333784,1775194495596,-500.0,0.00032876,120]
[419333785,1775194495623,-500.0,0.00032876,120]
[419333786,1775194495649,-500.0,0.00032876,120]
[419333787,1775194495675,-516.72469494,0.00032876,120]
[419333788,1775194495701,-500.0,0.00032876,120]
[419333789,1775194495726,-500.0,0.00032876,120]
[419333790,1775194495752,-500.0,0.00032876,120]
[419333791,1775194495779,-501.30802544,0.00032876,120]
[419333792,1775194495805,-522.87083609,0.00032876,120]
[419333793,1775194495830,-159.59508797,0.00032876,120]
[419333794,1775194495856,-305.60430228,0.00032876,120]
[419333795,1775194495881,-500.0,0.00032876,120]
[419333796,1775194495906,-500.0,0.00032876,120]
[419333797,1775194495931,-500.0,0.00032876,120]
[419333798,1775194495956,-544.10261465,0.00032876,120]
[419333799,1775194495981,-500.0,0.00032876,120]
[419333800,1775194496007,-507.97254003,0.00032876,120]
[419333801,1775194496032,-500.0,0.00032876,120]
[419333802,1775194496057,-500.0,0.00032876,120]
[419333803,1775194496083,-500.0,0.00032876,120]
[419333804,1775194496108,-500.0,0.00032876,120]
[419333805,1775194496133,-500.0,0.00032876,120]
[419333806,1775194496158,-500.0,0.00032876,120]
[419333807,1775194496186,-500.0,0.00032876,120]
[419333808,1775194496211,-258.77163004,0.00032876,120]
[419333809,1775194496238,-1981.88,0.00032876,120]
[419333810,1775194496264,-1981.88,0.00032876,120]
[419333811,1775194496290,-1981.88,0.00032876,120]
[419333812,1775194496316,-1981.88,0.00032876,120]
[419333813,1775194496342,-1981.88,0.00032876,120]
[419333814,1775194496368,-1981.88,0.00032876,120]
[419333815,1775194496394,-1981.88,0.00032876,120]
[419333816,1775194496420,-1981.88,0.00032876,120]
[419333817,1775194496449,-1981.88,0.00032876,120]
[419333818,1775194496475,-1981.88,0.00032876,120]
[419333819,1775194496500,-1981.88,0.00032876,120]
[419333820,1775194496527,-1981.88,0.00032876,120]
[419333821,1775194496553,-1981.88,0.00032876,120]
[419333822,1775194496578,-1981.88,0.00032876,120]
[419333823,1775194496603,-1981.88,0.00032876,120]
[419333824,1775194496627,-1981.88,0.00032876,120]
[419333825,1775194496652,-1981.88,0.00032876,120]
[419333826,1775194496677,-1981.88,0.00032876,120]
[419333827,1775194496703,-1981.88,0.00032876,120]
[419333828,1775194496728,-1981.88,0.00032876,120]
[419333829,1775194496753,-500.0,0.00032876,120]
[419333830,1775194496779,-1981.88,0.00032876,120]
[419333831,1775194496807,-500.0,0.00032876,120]
[419333832,1775194496833,-1981.88,0.00032876,120]
[419333833,1775194496859,-500.0,0.00032876,120]
[419333834,1775194496885,-1981.88,0.00032876,120]
[419333835,1775194496910,-509.92410272,0.00032876,120]
[419333836,1775194496934,-1982.00623986,0.00032876,120]
[419333837,1775194496960,-154.01950828,0.00032876,120]
[419333838,1775194496987,-500.0,0.00032876,120]
[419333839,1775194497012,-500.0,0.00032876,120]
[419333840,1775194497038,-500.0,0.00032876,120]
[419333841,1775194497063,-500.0,0.00032876,120]
[419333842,1775194497088,-500.0,0.00032876,120]
[419333843,1775194497112,-500.0,0.00032876,120]
[419333844,1775194497137,-500.0,0.00032876,120]
[419333845,1775194497162,-500.0,0.00032876,120]
[419333846,1775194497187,-500.0,0.00032876,120]
[419333847,1775194497212,-500.0,0.00032876,120]
[419333848,1775194497237,-500.0,0.00032876,120]
[419333849,1775194497264,-541.69422374,0.00032876,120]
[419333850,1775194497290,-500.0,0.00032876,120]
[419333851,1775194497316,-500.0,0.00032876,120]
[419333852,1775194497342,-500.0,0.00032876,120]
[419333853,1775194497367,-361.52732382,0.00032876,120]
[419333854,1775194497393,-348.08999546,0.00032876,120]
[419333855,1775194497418,-500.0,0.00032876,120]
[419333856,1775194497539,-500.0,0.00032876,120]
[419333857,1775194497568,-500.0,0.00032876,120]
[419333858,1775194497594,-500.0,0.00032876,120]
[419333859,1775194497621,-612.54290878,0.00032876,120]
[419333860,1775194497648,-500.0,0.00032876,120]
[419333861,1775194497675,-500.0,0.00032876,120]
[419333862,1775194497700,-500.0,0.00032876,120]
[419333863,1775194497726,-500.0,0.00032876,120]
[419333864,1775194497751,-500.0,0.00032876,120]
[419333865,1775194497776,-500.0,0.00032876,120]
[419333866,1775194497802,-500.0,0.00032876,120]
[419333867,1775194497827,-500.0,0.00032876,120]
[419333868,1775194497852,-516.53227888,0.00032876,120]
[419333869,1775194497878,-500.0,0.00032876,120]
[419333870,1775194497902,-500.0,0.00032876,120]
[419333871,1775194497927,-500.0,0.00032876,120]
[419333872,1775194497951,-500.0,0.00032876,120]
[419333873,1775194497976,-500.0,0.00032876,120]
[419333874,1775194498000,-500.0,0.00032876,120]
[419333875,1775194498026,-500.0,0.00032876,120]
[419333876,1775194498052,-500.0,0.00032876,120]
[419333877,1775194498078,-500.0,0.00032876,120]
[419333878,1775194498104,-500.0,0.00032876,120]
[419333879,1775194498131,-500.0,0.00032876,120]
[419333880,1775194498156,-571.00941767,0.00032876,120]
[419333881,1775194498181,-500.0,0.00032876,120]
[419333882,1775194498207,-599.20803139,0.00032876,120]
[419333883,1775194498235,-500.0,0.00032876,120]
[419333884,1775194498262,-500.0,0.00032876,120]
[419333885,1775194498288,-500.0,0.00032876,120]
[419333886,1775194498314,-500.0,0.00032876,120]
[419333887,1775194498341,-316.00196118,0.00032876,120]
[419333888,1775194498367,-500.0,0.00032876,120]
[419333889,1775194498393,-503.91552694,0.00032876,120]
[419333890,1775194498421,-161.62155661,0.00032876,120]
[419333891,1775194498447,-231.32379037,0.00032876,120]
[419333892,1775194498474,-500.0,0.00032876,120]
[419333893,1775194498499,-500.0,0.00032876,120]
[419333894,1775194498525,-500.0,0.00032876,120]
[419333895,1775194498550,-500.0,0.00032876,120]
[419333896,1775194498575,-500.0,0.00032876,120]
[419333897,1775194498600,-500.0,0.00032876,120]
[419333898,1775194498624,-500.0,0.00032876,120]
[419333899,1775194498649,-500.0,0.00032876,120]
[419333900,1775194498678,-500.0,0.00032876,120]
[419333901,1775194498703,-500.0,0.00032876,120]
[419333902,1775194498729,-575.79,0.00032876,120]
[419333903,1775194498754,-500.0,0.00032876,120]
[419333904,1775194498780,-575.79,0.00032876,120]
[419333905,1775194498806,-500.0,0.00032876,120]
[419333906,1775194498831,-575.79,0.00032876,120]
[419333907,1775194498858,-500.0,0.00032876,120]
[419333908,1775194498884,-575.79,0.00032876,120]
[419333909,1775194498910,-504.35287927,0.00032876,120]
[419333910,1775194498935,-575.79,0.00032876,120]
[419333911,1775194498961,-575.79,0.00032876,120]
[419333912,1775194498989,-575.79,0.00032876,120]
[419333913,1775194499015,-575.79,0.00032876,120]
[419333914,1775194499042,-575.79,0.00032876,120]
[419333915,1775194499068,-575.79,0.00032876,120]
[419333916,1775194499094,-575.79,0.00032876,120]
[419333917,1775194499119,-575.79,0.00032876,120]
[419333918,1775194499144,-575.79,0.00032876,120]
[419333919,1775194499169,-575.79,0.00032876,120]
[419333920,1775194499195,-575.79,0.00032876,120]
[419333921,1775194499220,-575.79,0.00032876,120]
[419333922,1775194499246,-575.79,0.00032876,120]
[419333923,1775194499273,-575.79,0.00032876,120]
[419333924,1775194499297,-575.79,0.00032876,120]
[419333925,1775194499323,-575.79,0.00032876,120]
[419333926,1775194499348,-575.79,0.00032876,120]
[419333927,1775194499374,-575.79,0.00032876,120]
[419333928,1775194499399,-575.79,0.00032876,120]
[419333929,1775194499424,-575.95192559,0.00032876,120]
[419333930,1775194499451,-834.48,0.00032876,120]
[419333931,1775194499475,-834.48,0.00032876,120]